lending/lending_fUSD_20240410
["ID","MTS","AMOUNT","RATE_DAILY","PERIOD"]
[322075918,1712743858910,-490.03437695,0.0004866,2]
[322075919,1712743858921,-490.03437695,0.0004866,2]
[322075920,1712743858931,-490.03437695,0.0004866,2]
[322075921,1712743858941,-490.03437695,0.0004866,2]
[322075922,1712743858951,-490.03437695,0.0004866,2]
[322075923,1712743858960,-490.03437695,0.0004866,2]
[322075924,1712743858969,-490.03437695,0.0004866,2]
[322075925,1712743858979,-490.03437695,0.0004866,2]
[322075926,1712743858988,-490.03437695,0.0004866,2]
[322075927,1712743858996,-490.03437695,0.0004866,2]
[322075928,1712743859005,-490.53,0.0004866,2]
[322075929,1712743859014,-150.0,0.00048666,30]
[322075930,1712743859023,-311.84,0.00048676,2]
[322075931,1712743859031,-93523.0,0.0004869,120]
[322075932,1712743859041,-16783.30913132,0.000487,2]
[322075933,1712743859050,-19000.0,0.000487,2]
[322075934,1712743859061,-481.0,0.000487,36]
[322075935,1712743859070,-394.0,0.000487,26]
[322075936,1712743859079,-394.0,0.000487,26]
[322075937,1712743859089,-300.0,0.000487,24]
[322075938,1712743859098,-188.0,0.000487,36]
[322075939,1712743859107,-2049.29460916,0.000487,30]
[322075940,1712743859116,-150.0,0.00048728,30]
[322075941,1712743859125,-90000.0,0.0004876,120]
[322075942,1712743859134,-1485.05892579,0.0004876,120]
[322075943,1712743859143,-777.838234,0.0004876,14]
[322075944,1712743859153,-777.838234,0.0004876,14]
[322075945,1712743859162,-151.0,0.0004876,14]
[322075946,1712743859172,-151.0,0.0004876,14]
[322075947,1712743859181,-151.0,0.0004876,14]
[322075948,1712743859190,-150.0,0.00048769,120]
[322075949,1712743859199,-150.0,0.00048777,30]
[322075950,1712743859208,-150.0,0.0004878,120]
[322075951,1712743859217,-45752.0,0.0004879,120]
[322075952,1712743859226,-2613.44481977,0.00048798,54]
[322075953,1712743859238,-7341.01596951,0.000488,120]
[322075954,1712743859247,-4079.0,0.000488,120]
[322075955,1712743859256,-75704.0,0.0004883,120]
[322075956,1712743859265,-151.0,0.0004883,7]
[322075957,1712743859274,-255.543456,0.0004883,14]
[322075958,1712743859283,-254.406766,0.0004883,14]
[322075959,1712743859292,-151.0,0.0004883,14]
[322075960,1712743859301,-151.0,0.0004883,14]
[322075961,1712743859312,-188.280396,0.0004883,14]
[322075962,1712743859321,-188.280396,0.0004883,14]
[322075963,1712743859330,-151.0,0.0004883,14]
[322075964,1712743859339,-213.073193,0.0004883,14]
[322075965,1712743859348,-213.073193,0.0004883,14]
[322075966,1712743859358,-271.110924,0.0004883,14]
[322075967,1712743859367,-271.110924,0.0004883,14]
[322075968,1712743859375,-322.988531,0.0004883,14]
[322075969,1712743859384,-322.988531,0.0004883,14]
[322075970,1712743859393,-151.0,0.0004883,14]
[322075971,1712743859402,-294.843849,0.0004883,14]
[322075972,1712743859413,-294.843849,0.0004883,14]
[322075973,1712743859422,-151.0,0.0004883,14]
[322075974,1712743859431,-151.0,0.0004883,14]
[322075975,1712743859440,-150.0,0.0004884,25]
[322075976,1712743859449,-65823.46,0.0004885,120]
[322075977,1712743859458,-7000.0,0.0004885,60]
[322075978,1712743859467,-1000.0,0.0004887,3]
[322075979,1712743859476,-500.0,0.0004887,3]
[322075980,1712743859486,-400.020215,0.00048878,30]
[322075981,1712743859495,-400.020215,0.00048878,30]
[322075982,1712743859504,-150.0,0.00048889,30]
[322075983,1712743859513,-211.0,0.0004889,30]
[322075984,1712743859522,-219.0,0.0004889,30]
[322075985,1712743859531,-218.0,0.0004889,30]
[322075986,1712743859541,-214.0,0.0004889,30]
[322075987,1712743859550,-1000.0,0.00048899,120]
[322075988,1712743859562,-778.40727141,0.000489,120]
[322075989,1712743859571,-1082.09920956,0.000489,120]
[322075990,1712743859581,-30166.76493187,0.000489,4]
[322075991,1712743859590,-213.7775262,0.000489,30]
[322075992,1712743859599,-543.75657413,0.000489,120]
[322075993,1712743859609,-23401.42461054,0.000489,5]
[322075994,1712743859618,-7548.68486681,0.000489,4]
[322075995,1712743859628,-383.52119614,0.000489,7]
[322075996,1712743859638,-7991.29962229,0.000489,120]
[322075997,1712743859646,-300.0,0.000489,11]
[322075998,1712743859656,-1030.0,0.000489,30]
[322075999,1712743859665,-224.0,0.00048941,28]
[322076000,1712743859675,-363.54,0.00048986,15]
[322076001,1712743859684,-6283.15248965,0.0004899,14]
[322076002,1712743859693,-131658.23796172,0.00048995,20]
[322076003,1712743859702,-1000.0,0.00048999,120]
[322076004,1712743859711,-100000.0,0.00049,49]
[322076005,1712743859721,-38042.68406102,0.00049,30]
[322076006,1712743859730,-21481.17527003,0.00049,2]
[322076007,1712743859739,-3969.4137665,0.00049,2]
[322076008,1712743859749,-300.0,0.00049,3]
[322076009,1712743859758,-518.86,0.00049,7]
[322076010,1712743859767,-2010.48,0.00049,5]
[322076011,1712743859777,-69772.34738512,0.00049,60]
[322076012,1712743859787,-600.0,0.00049,50]
[322076013,1712743859796,-1581.67,0.00049,120]
[322076014,1712743859806,-500.0,0.00049,120]
[322076015,1712743859817,-19034.23111324,0.00049,30]
[322076016,1712743859827,-9293.96139819,0.00049,120]
[322076017,1712743859836,-3157.72905605,0.00049,120]
[322076018,1712743859846,-819.5532491,0.00049,30]
[322076019,1712743859855,-724.74528514,0.00049,30]
[322076020,1712743859865,-204.88681492,0.00049,60]
[322076021,1712743859875,-1034.85315783,0.00049,4]
[322076022,1712743859885,-534303.00290722,0.00049,120]
[322076023,1712743859894,-2000.0,0.00049,120]
[322076024,1712743859903,-600.0,0.00049,50]
[322076025,1712743859913,-1590.44585316,0.00049,10]
[322076026,1712743859923,-14948.20898974,0.00049,120]
[322076027,1712743859932,-155.00265212,0.00049,120]
[322076028,1712743859941,-250.0,0.00049,60]
[322076029,1712743859951,-2216.27,0.00049,120]
[322076030,1712743859960,-1002.2,0.00049,120]
[322076031,1712743859970,-10000.0,0.00049,120]
[322076032,1712743859978,-10000.0,0.00049,120]
[322076033,1712743859987,-10000.0,0.00049,120]
[322076034,1712743859997,-10000.0,0.00049,120]
[322076035,1712743860006,-10000.0,0.00049,120]
[322076036,1712743860015,-10000.0,0.00049,120]
[322076037,1712743860025,-10000.0,0.00049,120]
[322076038,1712743860034,-10000.0,0.00049,120]
[322076039,1712743860043,-10000.0,0.00049,120]
[322076040,1712743860053,-10000.0,0.00049,120]
[322076041,1712743860064,-10000.0,0.00049,120]
[322076042,1712743860073,-10000.0,0.00049,120]
[322076043,1712743860082,-10000.0,0.00049,120]
[322076044,1712743860092,-10000.0,0.00049,120]
[322076045,1712743860101,-10000.0,0.00049,120]
[322076046,1712743860110,-411.14,0.00049,15]
[322076047,1712743860119,-151.0,0.00049,31]
[322076048,1712743860129,-293.18195105,0.00049,30]
[322076049,1712743860139,-158.16698508,0.00049,30]
[322076050,1712743860148,-159.48648328,0.00049,30]
[322076051,1712743860159,-151.80126495,0.00049,30]
[322076052,1712743860168,-150.88087269,0.00049,30]
[322076053,1712743860178,-151.56880006,0.00049,30]
[322076054,1712743860187,-152.95232729,0.00049,30]
[322076055,1712743860196,-153.12891206,0.00049,30]
[322076056,1712743860205,-150.0,0.00049,9]
[322076057,1712743860214,-1002.84,0.0004901,2]
[322076058,1712743860224,-150.0,0.0004902,120]
[322076059,1712743860233,-1000.0,0.000491,120]
[322076060,1712743860247,-250000.0,0.000491,60]
[322076061,1712743860257,-4065.2635265,0.00049116,120]
[322076062,1712743860266,-173.0,0.00049151,90]
[322076063,1712743860276,-250000.0,0.000492,60]
[322076064,1712743860285,-264.71111111,0.00049205,120]
[322076065,1712743860295,-250000.0,0.000493,60]
[322076066,1712743860304,-2352.82422188,0.000493,2]
[322076067,1712743860315,-229.999418,0.000493,7]
[322076068,1712743860324,-151.0,0.000493,14]
[322076069,1712743860334,-151.0,0.000493,14]
[322076070,1712743860348,-188.280396,0.000493,14]
[322076071,1712743860357,-188.280396,0.000493,14]
[322076072,1712743860367,-178.585476,0.000493,14]
[322076073,1712743860378,-213.073193,0.000493,14]
[322076074,1712743860387,-213.073193,0.000493,14]
[322076075,1712743860397,-271.110924,0.000493,14]
[322076076,1712743860409,-271.110924,0.000493,14]
[322076077,1712743860419,-322.988531,0.000493,14]
[322076078,1712743860428,-322.988531,0.000493,14]
[322076079,1712743860437,-151.0,0.000493,14]
[322076080,1712743860446,-294.843849,0.000493,14]
[322076081,1712743860456,-294.843849,0.000493,14]
[322076082,1712743860465,-151.0,0.000493,14]
[322076083,1712743860474,-151.0,0.000493,14]
[322076084,1712743860483,-777.838234,0.000493,14]
[322076085,1712743860493,-777.838234,0.000493,14]
[322076086,1712743860502,-151.0,0.000493,14]
[322076087,1712743860512,-151.0,0.000493,14]
[322076088,1712743860522,-225.566703,0.000493,14]
[322076089,1712743860532,-424.34663522,0.00049313,25]
[322076090,1712743860541,-500.0,0.00049315,30]
[322076091,1712743860550,-500.0,0.00049315,30]
[322076092,1712743860560,-1053.707671,0.00049315,30]
[322076093,1712743860570,-316.112301,0.00049315,30]
[322076094,1712743860579,-510.0,0.00049315,120]
[322076095,1712743860588,-666.0,0.00049315,2]
[322076096,1712743860598,-3000.0,0.00049315,120]
[322076097,1712743860607,-1000.0,0.00049315,60]
[322076098,1712743860617,-500.0,0.00049315,16]
[322076099,1712743860627,-182.605076,0.00049315,120]
[322076100,1712743860636,-1246.68557079,0.00049315,120]
[322076101,1712743860646,-157.97,0.00049315,30]
[322076102,1712743860656,-150.0,0.00049315,2]
[322076103,1712743860665,-250000.0,0.000494,60]
[322076104,1712743860675,-84789.9973768,0.000494,60]
[322076105,1712743860684,-5105.22698783,0.0004942,31]
[322076106,1712743860694,-150.0,0.00049428,120]
[322076107,1712743860703,-150.0,0.00049437,120]
[322076108,1712743860712,-3000.0,0.00049452,120]
[322076109,1712743860722,-157278.20099627,0.000495,10]
[322076110,1712743860731,-250.0,0.000495,60]
[322076111,1712743860740,-10000.0,0.000495,120]
[322076112,1712743860749,-1059.27654878,0.000495,120]
[322076113,1712743860759,-150.0,0.000495,10]
[322076114,1712743860768,-150.0,0.00049578,120]
[322076115,1712743860777,-510.0,0.00049589,120]
[322076116,1712743860786,-3000.0,0.00049589,120]
[322076117,1712743860795,-233.18865,0.000496,7]
[322076118,1712743860804,-250.0,0.000497,7]
[322076119,1712743860816,-3000.0,0.00049726,120]
[322076120,1712743860825,-130000.0,0.00049729,5]
[322076121,1712743860834,-15000.0,0.0004978,12]
[322076122,1712743860844,-716.93524245,0.000498,30]
[322076123,1712743860853,-233.18865,0.000498,7]
[322076124,1712743860863,-500.0,0.000498,30]
[322076125,1712743860873,-500.0,0.000498,30]
[322076126,1712743860882,-200.0,0.000498,30]
[322076127,1712743860892,-500.0,0.000498,30]
[322076128,1712743860901,-500.0,0.000498,30]
[322076129,1712743860910,-200.0,0.000498,30]
[322076130,1712743860920,-500.0,0.000498,30]
[322076131,1712743860929,-500.0,0.000498,30]
[322076132,1712743860938,-200.0,0.000498,30]
[322076133,1712743860948,-500.0,0.000498,30]
[322076134,1712743860957,-500.0,0.000498,30]
[322076135,1712743860967,-200.0,0.000498,30]
[322076136,1712743860976,-500.0,0.000498,30]
[322076137,1712743860985,-500.0,0.000498,30]
[322076138,1712743860995,-200.0,0.000498,30]
[322076139,1712743861004,-500.0,0.000498,30]
[322076140,1712743861014,-500.0,0.000498,30]
[322076141,1712743861023,-200.0,0.000498,30]
[322076142,1712743861032,-500.0,0.000498,30]
[322076143,1712743861041,-500.0,0.000498,30]
[322076144,1712743861051,-200.0,0.000498,30]
[322076145,1712743861060,-772.0,0.000498,30]
[322076146,1712743861069,-200.0,0.000498,30]
[322076147,1712743861078,-556.0,0.000498,30]
[322076148,1712743861088,-200.0,0.000498,30]
[322076149,1712743861097,-200.0,0.000498,30]
[322076150,1712743861107,-200.0,0.000498,30]
[322076151,1712743861116,-200.0,0.000498,30]
[322076152,1712743861125,-200.0,0.000498,30]
[322076153,1712743861134,-370.0,0.000498,30]
[322076154,1712743861144,-264.71111111,0.00049808,120]
[322076155,1712743861153,-1002.84,0.0004982,2]
[322076156,1712743861162,-4103.0,0.00049829,117]
[322076157,1712743861172,-510.0,0.00049863,120]
[322076158,1712743861181,-3000.0,0.00049863,120]
[322076159,1712743861190,-500.0,0.00049889,2]
[322076160,1712743861200,-500.0,0.00049889,2]
[322076161,1712743861209,-500.0,0.00049889,2]
[322076162,1712743861218,-500.0,0.00049889,2]
[322076163,1712743861230,-500.0,0.00049889,2]
[322076164,1712743861239,-500.19,0.00049889,2]
[322076165,1712743861249,-250000.0,0.000499,70]
[322076166,1712743861259,-250000.0,0.000499,70]
[322076167,1712743861268,-250000.0,0.000499,70]
[322076168,1712743861278,-250000.0,0.000499,70]
[322076169,1712743861287,-78650.69461487,0.000499,70]
[322076170,1712743861297,-989.75447063,0.000499,6]
[322076171,1712743861307,-1166.5927442,0.000499,120]
[322076172,1712743861317,-224.0,0.0004992,28]
[322076173,1712743861327,-500.0,0.00049989,2]
[322076174,1712743861337,-1272.3247805,0.00049998,120]
[322076175,1712743861347,-500.0,0.00049999,2]
[322076176,1712743861357,-1000.0,0.00049999,120]
[322076177,1712743861366,-5128.58884692,0.00049999,15]
[322076178,1712743861376,-100000.0,0.0005,50]
[322076179,1712743861385,-150.0,0.0005,27]
[322076180,1712743861395,-164038.86478463,0.0005,14]
[322076181,1712743861406,-1000.0,0.0005,120]
[322076182,1712743861415,-217.50540634,0.0005,4]
[322076183,1712743861425,-541.51223081,0.0005,28]
[322076184,1712743861435,-155.16557422,0.0005,2]
[322076185,1712743861445,-650.0,0.0005,120]
[322076186,1712743861454,-200.0,0.0005,120]
[322076187,1712743861464,-2100.0,0.0005,30]
[322076188,1712743861475,-157.62616533,0.0005,30]
[322076189,1712743861485,-156.2876643,0.0005,120]
[322076190,1712743861494,-200.0,0.0005,120]
[322076191,1712743861504,-234.01317082,0.0005,4]
[322076192,1712743861513,-1121.26292233,0.0005,2]
[322076193,1712743861523,-3887.01570934,0.0005,2]
[322076194,1712743861679,-200.0,0.0005,2]
[322076195,1712743861706,-320.0,0.0005,90]
[322076196,1712743861715,-200.0,0.0005,120]
[322076197,1712743861725,-880.496333,0.0005,2]
[322076198,1712743861734,-603.23363603,0.0005,120]
[322076199,1712743861744,-4378.49243847,0.0005,120]
[322076200,1712743861753,-916.57,0.0005,120]
[322076201,1712743861763,-1470.67613112,0.0005,120]
[322076202,1712743861773,-2013.50143924,0.0005,120]
[322076203,1712743861783,-450.0,0.0005,120]
[322076204,1712743861793,-200.0,0.0005,120]
[322076205,1712743861803,-200.0,0.0005,120]
[322076206,1712743861813,-200.0,0.0005,120]
[322076207,1712743861822,-200.0,0.0005,120]
[322076208,1712743861831,-1000.0,0.0005,21]
[322076209,1712743861841,-1889.02043682,0.0005,2]
[322076210,1712743861850,-10986.20646564,0.0005,3]
[322076211,1712743861860,-173.2,0.0005,2]
[322076212,1712743861870,-526.83908673,0.0005,120]
[322076213,1712743861879,-1000.0,0.0005,50]
[322076214,1712743861888,-1000.0,0.0005,50]
[322076215,1712743861898,-1000.0,0.0005,50]
[322076216,1712743861908,-1000.0,0.0005,50]
[322076217,1712743861917,-1000.0,0.0005,50]
[322076218,1712743861926,-1000.0,0.0005,50]
[322076219,1712743861936,-1000.0,0.0005,50]
[322076220,1712743861945,-1000.0,0.0005,50]
[322076221,1712743861954,-1000.0,0.0005,50]
[322076222,1712743861964,-1000.0,0.0005,50]
[322076223,1712743861973,-1000.0,0.0005,50]
[322076224,1712743861983,-1000.0,0.0005,50]
[322076225,1712743861992,-1000.0,0.0005,50]
[322076226,1712743862002,-1000.0,0.0005,50]
[322076227,1712743862011,-500000.0,0.0005,120]
[322076228,1712743862020,-200.0,0.0005,120]
[322076229,1712743862030,-250.0,0.0005,120]
[322076230,1712743862039,-2575.1491738,0.0005,5]
[322076231,1712743862049,-1144.11480272,0.0005,2]
[322076232,1712743862058,-506.96053719,0.0005,60]
[322076233,1712743862070,-500.03596399,0.0005,30]
[322076234,1712743862079,-150.0,0.0005,120]
[322076235,1712743862088,-672.0,0.0005,120]
[322076236,1712743862097,-2611.0,0.0005,30]
[322076237,1712743862106,-200.0,0.0005,120]
[322076238,1712743862115,-172.80137956,0.0005,120]
[322076239,1712743862126,-16000.0,0.0005,14]
[322076240,1712743862135,-200.0,0.0005,120]
[322076241,1712743862144,-15105.07147867,0.0005,60]
[322076242,1712743862154,-10739.46608449,0.0005,120]
[322076243,1712743862163,-30000.0,0.0005,120]
[322076244,1712743862172,-200.0,0.0005,120]
[322076245,1712743862182,-92476.09626036,0.0005,120]
[322076246,1712743862192,-117277.64977509,0.0005,120]
[322076247,1712743862201,-407.87023284,0.0005,120]
[322076248,1712743862211,-200.0,0.0005,120]
[322076249,1712743862220,-200.0,0.0005,120]
[322076250,1712743862230,-200.0,0.0005,120]
[322076251,1712743862241,-8556.18726234,0.0005,14]
[322076252,1712743862250,-2000.0,0.0005,120]
[322076253,1712743862259,-30144.970629,0.0005,120]
[322076254,1712743862269,-600.0,0.0005,51]
[322076255,1712743862278,-5000.0,0.0005,120]
[322076256,1712743862288,-151.0,0.0005,120]
[322076257,1712743862297,-817.42924548,0.0005,2]
[322076258,1712743862306,-1000.0,0.0005,2]
[322076259,1712743862318,-224.49,0.0005,120]
[322076260,1712743862328,-38116.47729852,0.0005,120]
[322076261,1712743862338,-1077.24482058,0.0005,30]
[322076262,1712743862348,-1189.19457696,0.0005,120]
[322076263,1712743862358,-1235.29186939,0.0005,30]
[322076264,1712743862368,-302.59589434,0.0005,120]
[322076265,1712743862378,-176.50250754,0.0005,120]
[322076266,1712743862388,-139542.0,0.0005,60]
[322076267,1712743862397,-125930.93932617,0.0005,2]
[322076268,1712743862407,-16656.0,0.0005,13]
[322076269,1712743862417,-15958.72740526,0.0005,120]
[322076270,1712743862427,-151.0,0.0005,30]
[322076271,1712743862437,-151.0,0.0005,30]
[322076272,1712743862446,-188.280396,0.0005,120]
[322076273,1712743862456,-188.280396,0.0005,120]
[322076274,1712743862465,-3000.0,0.0005,120]
[322076275,1712743862475,-213.073193,0.0005,120]
[322076276,1712743862485,-213.073193,0.0005,120]
[322076277,1712743862494,-271.110924,0.0005,120]
[322076278,1712743862504,-271.110924,0.0005,120]
[322076279,1712743862513,-200.0,0.0005,27]
[322076280,1712743862522,-150.0,0.0005,10]
[322076281,1712743862532,-4895.0,0.0005,120]
[322076282,1712743862541,-322.988531,0.0005,120]
[322076283,1712743862550,-322.988531,0.0005,120]
[322076284,1712743862559,-151.0,0.0005,120]
[322076285,1712743862571,-294.843849,0.0005,120]
[322076286,1712743862580,-294.843849,0.0005,120]
[322076287,1712743862589,-151.0,0.0005,120]
[322076288,1712743862599,-238.195416,0.0005,120]
[322076289,1712743862608,-777.838234,0.0005,120]
[322076290,1712743862617,-777.838234,0.0005,120]
[322076291,1712743862627,-214.9087,0.0005,120]
[322076292,1712743862637,-151.0,0.0005,120]
[322076293,1712743862647,-554.3515017,0.00050136,120]
[322076294,1712743862656,-3000.0,0.00050136,120]
[322076295,1712743862666,-233.18865,0.000502,7]
[322076296,1712743862675,-3000.0,0.00050273,120]
[322076297,1712743862684,-150.0,0.00050332,120]
[322076298,1712743862694,-150.0,0.00050385,120]
[322076299,1712743862703,-233.18865,0.000504,7]
[322076300,1712743862712,-150.0,0.00050408,120]
[322076301,1712743862722,-1418.78334673,0.0005041,120]
[322076302,1712743862731,-264.71111111,0.00050411,120]
[322076303,1712743862740,-675.99,0.00050469,2]
[322076304,1712743862750,-900.0,0.00050469,2]
[322076305,1712743862759,-2000.0,0.000505,120]
[322076306,1712743862768,-1002.84,0.0005063,2]
[322076307,1712743862778,-150.0,0.00050677,120]
[322076308,1712743862787,-526.853835,0.00050684,30]
[322076309,1712743862797,-158.05615,0.00050684,30]
[322076310,1712743862807,-1000.0,0.00050684,60]
[322076311,1712743862817,-1000.0,0.000507,2]
[322076312,1712743862827,-160.55596526,0.000507,2]
[322076313,1712743862836,-5824.68208529,0.0005074,2]
[322076314,1712743862846,-150.0,0.00050799,120]
[322076315,1712743862855,-13426.31115285,0.000508,120]
[322076316,1712743862864,-224.0,0.00050899,28]
[322076317,1712743862874,-530224.80146,0.000509,30]
[322076318,1712743862883,-311.84,0.0005094,2]
[322076319,1712743862893,-100000.0,0.00051,51]
[322076320,1712743862903,-3176.97785562,0.00051,120]
[322076321,1712743862912,-46893.25747965,0.00051,2]
[322076322,1712743862921,-1000.42,0.00051,120]
[322076323,1712743862930,-150.0,0.00051,29]
[322076324,1712743862939,-2000.0,0.00051,120]
[322076325,1712743862948,-150.0,0.00051,120]
[322076326,1712743862957,-339.634292,0.00051,120]
[322076327,1712743862966,-150.0,0.00051,120]
[322076328,1712743862976,-97982.41082001,0.00051,14]
[322076329,1712743862985,-150.0,0.00051,15]
[322076330,1712743862994,-576107.24080722,0.00051,120]
[322076331,1712743863003,-600.0,0.00051,52]
[322076332,1712743863012,-151.0,0.00051,30]
[322076333,1712743863021,-151.0,0.00051,30]
[322076334,1712743863031,-188.280396,0.00051,120]
[322076335,1712743863040,-188.280396,0.00051,120]
[322076336,1712743863050,-213.073193,0.00051,120]
[322076337,1712743863061,-213.073193,0.00051,120]
[322076338,1712743863072,-271.110924,0.00051,120]
[322076339,1712743863081,-271.110924,0.00051,120]
[322076340,1712743863091,-322.988531,0.00051,120]
[322076341,1712743863100,-322.988531,0.00051,120]
[322076342,1712743863109,-227.202802,0.00051,120]
[322076343,1712743863118,-294.843849,0.00051,120]
[322076344,1712743863128,-294.843849,0.00051,120]
[322076345,1712743863137,-151.0,0.00051,120]
[322076346,1712743863147,-777.838234,0.00051,120]
[322076347,1712743863156,-777.838234,0.00051,120]
[322076348,1712743863166,-151.0,0.00051,120]
[322076349,1712743863175,-264.71111111,0.00051014,120]
[322076350,1712743863184,-22530.6123081,0.000511,7]
[322076351,1712743863194,-151.0,0.00051123,120]
[322076352,1712743863203,-150.0,0.00051147,120]
[322076353,1712743863213,-150.0,0.00051163,120]
[322076354,1712743863224,-1030.0,0.00051345,30]
[322076355,1712743863234,-151.0,0.00051377,2]
[322076356,1712743863246,-1002.84,0.0005144,2]
[322076357,1712743863256,-483.88364913,0.000515,2]
[322076358,1712743863265,-264.71111111,0.00051616,120]
[322076359,1712743863275,-200.0,0.00051688,120]
[322076360,1712743863285,-363.54,0.00051726,120]
[322076361,1712743863295,-224.0,0.00051877,28]
[322076362,1712743863304,-23498.0521213,0.000519,30]
[322076363,1712743863316,-5068.0,0.0005199,30]
[322076364,1712743863326,-185.16840447,0.00051999,120]
[322076365,1712743863335,-100000.0,0.00052,52]
[322076366,1712743863344,-2000.0,0.00052,120]
[322076367,1712743863354,-10000.0,0.00052,4]
[322076368,1712743863363,-10000.0,0.00052,25]
[322076369,1712743863372,-10000.0,0.00052,21]
[322076370,1712743863381,-150.0,0.00052,30]
[322076371,1712743863391,-14345.0,0.00052,120]
[322076372,1712743863401,-1000.0,0.00052,30]
[322076373,1712743863412,-4447.26404734,0.00052,120]
[322076374,1712743863421,-150.0,0.00052,120]
[322076375,1712743863430,-150729.79448129,0.00052,120]
[322076376,1712743863440,-29904.88843571,0.00052,120]
[322076377,1712743863449,-1123.0,0.00052,120]
[322076378,1712743863458,-26850.93156272,0.00052,120]
[322076379,1712743863467,-20000.0,0.00052,120]
[322076380,1712743863477,-650.0,0.00052,120]
[322076381,1712743863486,-500.0,0.00052054,30]
[322076382,1712743863495,-500.0,0.00052054,30]
[322076383,1712743863505,-500.0,0.00052054,30]
[322076384,1712743863514,-500.0,0.00052054,30]
[322076385,1712743863523,-500.0,0.00052054,30]
[322076386,1712743863532,-666.0,0.00052054,2]
[322076387,1712743863542,-1000.0,0.00052054,60]
[322076388,1712743863551,-3146.18,0.00052055,32]
[322076389,1712743863561,-4000.0,0.00052055,30]
[322076390,1712743863573,-25000.0,0.000521,120]
[322076391,1712743863582,-264.71111111,0.00052219,120]
[322076392,1712743863591,-151.0,0.00052247,120]
[322076393,1712743863600,-1002.84,0.0005225,2]
[322076394,1712743863609,-500.0,0.00052328,30]
[322076395,1712743863618,-500.0,0.00052328,30]
[322076396,1712743863627,-500.0,0.00052328,30]
[322076397,1712743863636,-298.67370889,0.0005233,120]
[322076398,1712743863645,-8000.0,0.00052385,90]
[322076399,1712743863655,-2015.0,0.000525,120]
[322076400,1712743863664,-406.11392932,0.00052602,30]
[322076401,1712743863674,-5000.0,0.000528,90]
[322076402,1712743863683,-264.71111111,0.00052822,120]
[322076403,1712743863692,-8949.6,0.00052957,117]
[322076404,1712743863701,-100000.0,0.00053,53]
[322076405,1712743863710,-569.57168499,0.00053,2]
[322076406,1712743863719,-3000.0,0.00053,120]
[322076407,1712743863728,-1000.0,0.00053,120]
[322076408,1712743863737,-1000.0,0.00053,120]
[322076409,1712743863746,-1000.0,0.00053,120]
[322076410,1712743863755,-1000.0,0.00053,120]
[322076411,1712743863764,-1034.8,0.00053,120]
[322076412,1712743863773,-300000.0,0.00053,14]
[322076413,1712743863782,-15690.62199451,0.00053,30]
[322076414,1712743863791,-151.15,0.00053,120]
[322076415,1712743863800,-31129.77521661,0.00053,120]
[322076416,1712743863809,-150.0,0.00053,120]
[322076417,1712743863819,-374.63075304,0.00053,120]